Cogmind - Beta 17 @@@ ROGUE MODE // 2026.07.19 @ 13:42:18 Player: Vidali Result: Self-destructed Performance ------------- Evolutions (2) 1000 Regions Visited (4) 800 Robots Destroyed (67) 335 Value Destroyed (2077) 2077 Prototype IDs (6) 120 Alien Tech Used (0) 0 Bonus (140) 140 TOTAL SCORE: 4472 Bonus ------- High Alert Combat Kills 6 Follower Combat Kills 134 Cogmind --------- Core Integrity 414/550 Matter 269/300 Energy 43/100 System Corruption 1% Temperature Hot (243) Movement Walking (140) Location -8/Materials Parts ------- > --- POWER (1) -------- (None) > --- PROPULSION (2) --- Light Armored Exoskeleton > --- UTILITY (6) ------ Improved Heat Sink Large Storage Unit Advanced Weight Redist. System Advanced Targeting Computer > --- WEAPON (2) ------- Advanced Beam Cannon > --- INVENTORY (15) --- Light Armored Exoskeleton Light Armored Exoskeleton Light Armored Exoskeleton Large Matter Pod (150) Seismic Detector Transport Network Coupler Improved Weapon Shielding Improved Medium Armor Plating Improved Medium Armor Plating Ion Cannon Peak State ------------ > --- POWER ------------ Light Nuclear Core > --- PROPULSION ------- Light Armored Exoskeleton > --- UTILITY ---------- Improved Heat Sink Large Storage Unit Advanced Weight Redist. System Improved Sensor Array Advanced Targeting Computer Improved Weapon Shielding > --- WEAPON ----------- Advanced Beam Cannon Ion Cannon > --- INVENTORY -------- Light Deuterium Engine Light Armored Exoskeleton Light Armored Exoskeleton Light Armored Exoskeleton Combat Airjet Large Matter Pod Seismic Detector Transport Network Coupler Improved Weapon Shielding Improved Medium Armor Plating Improved Medium Armor Plating Improved Grenade Launcher [Rating: 37] Favorites ----------- Power Ion Engine Engine Ion Engine Power Core Light Nuclear Core Propulsion Light Treads Treads Light Treads Leg Light Armored Exoskeleton Utility Large Storage Unit Device Cooling System Storage Large Storage Unit Processor Targeting Computer Protection Improved Weapon Shielding Weapon Assault Rifle Energy Gun Improved Medium Laser Energy Cannon Beam Cannon Ballistic Gun Assault Rifle Launcher Improved Grenade Launcher Build | -11 -10 -9 -9 -8 ------- Run | Yrd Mat Mat Min Mat Slots Evolved 4 | . . 2 . 2 Power . | . . . . . Propulsion . | . . . . . Utility 4 | . . 2 . 2 Weapon . | . . . . . Parts Attached 38 | 6 3 16 1 12 Power 4 | 1 . 2 . 1 Engine 2 | 1 . . . 1 Core 2 | . . 2 . . Reactor . | . . . . . Propulsion 9 | 2 . 4 . 3 Treads 8 | 2 . 4 . 2 Leg 1 | . . . . 1 Wheel . | . . . . . Hover . | . . . . . Flight . | . . . . . Utility 12 | 1 2 4 1 4 Device 7 | . 1 3 . 3 Storage 2 | 1 1 . . . Processor 2 | . . 1 . 1 Hackware . | . . . . . Protection 1 | . . . 1 . Artifact . | . . . . . Weapon 13 | 2 1 6 . 4 Energy Gun 6 | . . 4 . 2 Energy Cannon 3 | . 1 . . 2 Ballistic Gun 3 | 2 . 1 . . Ballistic Cannon . | . . . . . Launcher 1 | . . 1 . . Special Weapon . | . . . . . Impact Weapon . | . . . . . Slashing Weapon . | . . . . . Piercing Weapon . | . . . . . Special Melee Weapon . | . . . . . Unidentified Prototypes 4 | . . 1 . 3 Parts Lost 9 | . . 2 1 6 Power 3 | . . 1 . 2 Propulsion 1 | . . 1 . . Utility 4 | . . . 1 3 Weapon 1 | . . . . 1 Highest Loss Streak 3 | . . 1 1 3 To Critical Strikes . | . . . . . Average Backups 9 | 3 8 14 14 13 Power 1 | . 1 1 . . Propulsion 2 | 1 2 3 3 3 Utility 2 | . 2 4 5 5 Weapon 3 | . 2 5 5 3 Tool/Special . | . . . . . Unused Backups 24 | . . 9 1 14 Power 1 | . . . 1 . Propulsion 6 | . . 1 . 5 Utility 6 | . . . . 6 Weapon 11 | . . 8 . 3 Tool/Special . | . . . . . Average Slot Usage (%) 97 | . 98 99 99 85 Engine 4 | . 14 . . . Core 6 | . . 10 11 7 Treads 22 | . 28 21 22 9 Device 18 | . 12 24 12 19 Storage 11 | . 14 11 11 9 Processor 6 | . . 8 11 9 Protection 2 | . . . 9 8 Energy Gun 11 | . . 19 21 5 Energy Cannon 6 | . 13 2 . 11 Ballistic Gun 4 | . 14 . . . Peak Build Rating 37 | 6 8 23 24 37 Average Rating 13 | 5 7 18 23 29 On Entrance 12 | . 6 8 22 24 Avg Prop Armor Cover (%) . | . . . . . Naked Turns . | . . . . . Heaviest Build 40 | 14 31 37 37 40 Greatest Support 44 | 40 40 44 44 44 Greatest Overweight (x) 1 | . . . . 1 Average Overweight (x) . | . . . . . Largest Inventory Capacity 15 | 8 15 15 15 15 Average Capacity 11 | 7 12 15 15 15 Most Carried 15 | 4 13 15 15 15 Average Carried 9 | 3 8 14 14 14 Final Capacity 15 | 8 15 15 15 15 Final Carried 15 | 4 13 15 15 13 Class Distribution -------------------- 100% | Mutant Dominant Class ---------------- Mutant | -10/Materials Mutant | -9/Materials Mutant | -9/Mines Mutant | -8/Materials Resources | -11 -10 -9 -9 -8 ----------- Run | Yrd Mat Mat Min Mat Matter Collected 986 | 207 225 275 159 120 Remotely . | . . . . . Salvage Created 2318 | 16 307 1361 26 608 Parts 134 | . 15 91 2 26 Haulers Intercepted 5 | . . 3 . 2 Recyclers Shooed 1 | . . . . 1 Parts Field Recycled . | . . . . . Retrieved Matter . | . . . . . Parts Self-Destructed . | . . . . . Prevented . | . . . . . Parts Restored . | . . . . . Kills | -11 -10 -9 -9 -8 ------- Run | Yrd Mat Mat Min Mat Combat Hostiles Destroyed 63 | 1 6 33 10 13 Guns 36 | 1 . 28 3 4 Cannons 12 | . 6 1 . 5 AOE 14 | . . 3 7 4 Classes Destroyed 10 | 1 2 4 1 2 Hauler 5 | . . 3 . 2 Watcher 6 | . 2 3 . 1 Swarmer 10 | . . 7 3 . Grunt 32 | . 6 16 . 10 Brawler 3 | . . 3 . . Duelist 1 | . . . . 1 Protector 2 | . . . . 2 Sentry 7 | . . 7 . . Demolisher 1 | 1 . . . . Assembled 7 | . . . 7 . Best Kill Streak 7 | 1 2 5 7 5 Combat Bots Only 7 | 1 2 4 7 5 Max Kills in Single Turn 4 | 1 1 3 2 4 Gunslinging . | . . . . . Exploded 4 | . . 3 2 4 Melee . | . . . . . Uniques/NPCs Destroyed . | . . . . . Combat | -11 -10 -9 -9 -8 -------- Run | Yrd Mat Mat Min Mat Hostile Shots Fired 216 | . 38 85 26 67 Missed 64 | . 9 27 7 21 Hits 152 | . 29 58 19 46 Melee 1 | . . . 1 . Projectile 151 | . 29 58 18 46 AOE 1 | . . . 1 . Critical Strikes 6 | . 3 . 1 2 Damage Taken 2283 | . 418 694 296 875 Core 485 | . 117 131 101 136 Absorbed by Shields . | . . . . . Redirected to Shielding 103 | . . . . 103 Core Remaining (%) 65 | 100 53 . 42 . Volleys Fired 170 | 1 40 76 10 43 Largest 2 | 2 2 2 2 2 Hottest 133 | 40 80 125 121 133 Shots Fired 297 | 2 60 148 12 75 Gun 190 | 2 20 135 4 29 Cannon 95 | . 40 11 . 44 Launcher 12 | . . 2 8 2 Special . | . . . . . Kinetic 22 | 2 20 . . . Thermal 263 | . 40 146 4 73 Explosive 12 | . . 2 8 2 Electromagnetic . | . . . . . Robot Hit Streak 22 | 2 5 22 6 15 Robot Miss Streak 6 | . 4 6 1 6 Penetration Max . | . . . . . Secondary Targets 3 | . . 2 . 1 Max Gunslinging Chain 1 | . . 1 . 1 Shots Hit Robots 203 | 2 30 102 7 62 Core Hits 193 | 2 12 94 20 65 Critical Kills . | . . . . . Critical Parts Destroyed . | . . . . . Critical Strikes 6 | . . 5 . 1 Burn 6 | . . 5 . 1 Melee Attacks . | . . . . . Impact . | . . . . . Slashing . | . . . . . Piercing . | . . . . . Sneak Attacks . | . . . . . Combat Hostiles . | . . . . . Follow-up Attacks . | . . . . . Damage Inflicted 4869 | 27 500 1945 593 1804 Guns 2241 | 27 114 1635 67 398 Cannons 1223 | . 386 89 . 748 Explosions 1405 | . . 221 526 658 Melee . | . . . . . Ramming . | . . . . . Kinetic 141 | 27 114 . . . Thermal 3323 | . 386 1724 67 1146 Explosive 1405 | . . 221 526 658 Electromagnetic . | . . . . . Impact . | . . . . . Slashing . | . . . . . Piercing . | . . . . . Highest Corruption 1 | . . . . 1 Average Corruption 1 | . . . . 1 Corruption Purged . | . . . . . Corruption Blocked . | . . . . . Effects 1 | . . . . 1 Energy Discharges 1 | . . . . 1 Overload Shots . | . . . . . Overflow Damage 33 | . . 18 15 . Projectiles . | . . . . . Explosions 33 | . . 18 15 . Melee . | . . . . . Knockbacks . | . . . . . Impact . | . . . . . Kinetic . | . . . . . Secondary . | . . . . . Self-Inflicted Damage 7 | . . . . 7 Shots 1 | . . . . 1 Rammed . | . . . . . Targets Rammed . | . . . . . Kicked . | . . . . . Crushed . | . . . . . Highest Temperature 270 | . 144 270 . 216 Average Temperature 61 | . 55 56 . 90 Received Heat Transfer 1047 | . 291 288 . 468 Effects 2 | . . . . 2 Interference 2 | . . . . 2 Siege Activations . | . . . . . Martial Activations . | . . . . . Shielding Activations . | . . . . . Robots Disrupted . | . . . . . Combat Hostiles . | . . . . . Robots Corrupted . | . . . . . Combat Hostiles . | . . . . . Parts Fried . | . . . . . Impact Corruptions . | . . . . . Robots Melted 1 | . . 1 . . Combat Hostiles 1 | . . 1 . . Parts Melted 11 | . 3 6 . 2 Heat Transferred 6535 | . 814 3617 109 1995 Parts Sabotaged . | . . . . . Parts Stolen . | . . . . . Parts Stripped . | . . . . . Power Chain Reactions . | . . . . . Alert | -11 -10 -9 -9 -8 ------- Run | Yrd Mat Mat Min Mat Maximum Alert Level 2 | . . 2 1 . Low Security (%) 87 | 100 100 62 70 100 Level 1 10 | . . 27 29 . Level 2 2 | . . 9 . . Level 3 . | . . . . . Level 4 . | . . . . . Level 5 . | . . . . . High Security . | . . . . . Max Security . | . . . . . Peak Influence 469 | 20 52 469 258 176 Initial 174 | . . . 174 23 Average 65 | . 10 153 154 81 Influence Increases 1814 | 20 254 959 142 439 Destroy 0b10 Robot/C 1160 | 20 120 660 80 280 Destroy 0b10 Robot/NC 75 | . 10 30 . 35 Destroy Leader 284 | . 34 172 20 58 Allied During Kill 42 | . . . 5 37 Successful Hack 79 | . 42 17 . 20 Disable Machine 15 | . . 15 . . Destroy Structure 69 | . 3 20 37 9 Partial Spotted 15 | . 15 . . . Lose Combat Pursuer 75 | . 30 45 . . Influence Decreases 1734 | 20 254 511 530 419 Entered New Map 311 | . . . 274 37 Time Decay 1257 | 20 228 501 246 262 Lost Part 80 | . . 10 10 60 Lost Ally 60 | . . . . 60 Purge Threat 26 | . 26 . . . Squads Dispatched 5 | . . 3 . 2 Investigation . | . . . . . Extermination . | . . . . . Reinforcement 3 | . . 3 . . Assault 2 | . . . . 2 Garrison . | . . . . . Intercept . | . . . . . Searches Triggered . | . . . . . Construction Impeded . | . . . . . Haulers Reinforced . | . . . . . Active Scanning Responses . | . . . . . Cargo Convoy Interrupts . | . . . . . Stealth | -11 -10 -9 -9 -8 --------- Run | Yrd Mat Mat Min Mat Distress Signals 5 | . 1 2 1 1 Communications Jammed . | . . . . . Distress Signals . | . . . . . Times Spotted 101 | 1 14 49 11 26 Peak Tracking Total 10 | 1 3 5 8 10 Tactical Retreats 3 | . 2 1 . . Traps | -11 -10 -9 -9 -8 ------- Run | Yrd Mat Mat Min Mat Traps Triggered 2 | . . . . 2 Indirectly . | . . . . . Trap Hack Attempts . | . . . . . Triggered . | . . . . . Disarmed . | . . . . . Reprogrammed . | . . . . . Reused . | . . . . . Traps Extracted . | . . . . . Installed . | . . . . . Triggered . | . . . . . Machines | -11 -10 -9 -9 -8 ---------- Run | Yrd Mat Mat Min Mat Machines Disabled 2 | . 1 1 . . Max in Single Turn 1 | . 1 1 . . Garrison Access 1 | . . . . 1 Machines Repaired . | . . . . . Machines Dismantled . | . . . . . Machines Sabotaged . | . . . . . Overloaded Fab Kills . | . . . . . Hacking | -11 -10 -9 -9 -8 --------- Run | Yrd Mat Mat Min Mat Machines Accessed 16 | . 5 9 . 2 Terminals 13 | . 5 7 . 1 Fabricators . | . . . . . Repair Stations . | . . . . . Recycling Units 1 | . . 1 . . Scanalyzers 2 | . . 1 . 1 Garrison Access . | . . . . . Total Hacks 44 | . 18 21 . 5 Successful 28 | . 13 12 . 3 Failed 16 | . 5 9 . 2 Catastrophic 2 | . 1 . . 1 Database Lockouts . | . . . . . Manual 31 | . 12 17 . 2 Terminals 39 | . 18 19 . 2 Fabricators . | . . . . . Repair Stations . | . . . . . Recycling Units 1 | . . 1 . . Scanalyzers 4 | . . 1 . 3 Garrison Access . | . . . . . Terminal Hacks 13 | . 9 3 . 1 Record 1 | . 1 . . . Robot Analysis 6 | . 4 2 . . Prototype ID Bank 1 | . . 1 . . Branch Access Points 1 | . . . . 1 Terminal Index 1 | . 1 . . . Unreport Threat 1 | . 1 . . . Hauler Manifests 1 | . 1 . . . Zone Layout 1 | . 1 . . . Fabricator Hacks . | . . . . . Repair Station Hacks . | . . . . . Recycling Unit Hacks 1 | . . 1 . . Report Inventory 1 | . . 1 . . Scanalyzer 3 | . . 1 . 2 Retrieve Study 3 | . . 1 . 2 Garrison Access Hacks . | . . . . . Unauthorized Hacks 11 | . 4 7 . . Terminals 11 | . 4 7 . . Botnet 11 | . 4 7 . . Fabricators . | . . . . . Repair Stations . | . . . . . Recycling Units . | . . . . . Scanalyzers . | . . . . . Garrison Access . | . . . . . Data Cores Recovered . | . . . . . Used . | . . . . . Hacking Detections 15 | . 5 8 . 2 Full Trace Events . | . . . . . Feedback Events . | . . . . . Feedback Blocked . | . . . . . Robot Schematics Acquired . | . . . . . Robots Built . | . . . . . Authchips . | . . . . . Time . | . . . . . Total Robot Build Rating . | . . . . . Part Schematics Acquired . | . . . . . Parts Built . | . . . . . Authchips . | . . . . . Time . | . . . . . Total Part Build Rating . | . . . . . Part Studies Acquired 3 | . . 1 . 2 Parts Repaired . | . . . . . Time . | . . . . . Parts Recycled . | . . . . . Recycled Matter . | . . . . . Retrieved Matter . | . . . . . Retrieved Components . | . . . . . Parts Scanalyzed . | . . . . . Part Schematics Acquired . | . . . . . Parts Damaged . | . . . . . Bothacking | -11 -10 -9 -9 -8 ------------ Run | Yrd Mat Mat Min Mat Used RIF Installer . | . . . . . Robots Hacked . | . . . . . Non-combat . | . . . . . Combat . | . . . . . Robot Hacks Applied . | . . . . . Relay Couplers Released 1 | . . . . 1 Machine Destruction 1 | . . . . 1 Fabnet Peak Effective % . | . . . . . Robots Rewired . | . . . . . Allies Hacked . | . . . . . Hacks Repelled . | . . . . . Allies | -11 -10 -9 -9 -8 -------- Run | Yrd Mat Mat Min Mat Total Allies 3 | . . . 3 . Largest Group 3 | . . . 3 3 Highest-Rated Group 40 | . . . 40 40 Highest-Rated Ally 16 | . . . 16 16 Total Orders . | . . . . . Ally Attacks 56 | . . . 1 55 Total Damage 564 | . . . 16 548 Kills 6 | . . . 1 5 Allies Corrupted . | . . . . . Allies Melted . | . . . . . Intel | -11 -10 -9 -9 -8 ------- Run | Yrd Mat Mat Min Mat Active Infowar (turns) 2056 | . . 1669 55 332 Sensors 332 | . . . . 332 Structural 1724 | . . 1669 55 . Seismic 389 | . . 389 . . Robot Analysis Total 6 | . 4 2 . . Derelict Logs Recovered 1 | . . . 1 . Drone Launches . | . . . . . Drone Recoveries . | . . . . . Exploration | -11 -10 -9 -9 -8 ------------- Run | Yrd Mat Mat Min Mat Turns Passed 6090 | 2118 1210 1669 533 560 Spaces Moved 2585 | 536 640 840 333 236 Core 2 | 2 . . . . Treads 2482 | 534 640 840 333 135 Legs 101 | . . . . 101 Wheels . | . . . . . Hover . | . . . . . Flight . | . . . . . Fastest Speed 50 | 50 160 145 145 140 Average Speed 154 | 159 160 151 145 148 Slowest Speed 250 | 160 160 160 145 250 Overloaded Moves . | . . . . . Propulsion Burnouts . | . . . . . Robots Hopped . | . . . . . Potential Cave-ins . | . . . . . Cave-ins Triggered . | . . . . . Exploration Rate (%) 69 | 58 94 84 78 32 Regions Visited 4 Branch Regions 1 Pre-discovered Areas 1 | . . . 1 . Known Exits Taken . | . . . . . Unknown Exits Taken 4 | 1 1 1 1 . Scrap Searched 1 | . . . 1 . Spaces Dug . | . . . . . Terrain Destroyed 96 | . . 8 82 6 Melee . | . . . . . Projectile 1 | . . . . 1 AOE 95 | . . 8 82 5 Terrain Rammed . | . . . . . Walls Destroyed . | . . . . . Machines Disabled . | . . . . . Actions | -11 -10 -9 -9 -8 --------- Run | Yrd Mat Mat Min Mat Total 4388 | 1794 765 1089 369 371 Wait 1515 | 1248 74 120 18 55 Move 2581 | 535 639 839 332 236 Hop . | . . . . . Pick Up 38 | 4 8 17 2 7 Fast Attach 19 | 6 2 4 . 7 Attach 7 | . . 4 1 2 Detach . | . . . . . Swap 21 | . 1 10 5 5 Drop 37 | . 1 19 1 16 Fire 170 | 1 40 76 10 43 Melee . | . . . . . Ram . | . . . . . Kick . | . . . . . Crush . | . . . . . Escape Stasis . | . . . . . Rewire . | . . . . . Trap . | . . . . . Miscellaneous . | . . . . . Route ------- -11/Scrapyard -10/Materials (discovered 5 exits: *Mat x3 / [*Min x2]) -9/Materials (discovered 5 exits: *Mat x3 / [*Min x2]) -9/Mines (discovered 2 exits: *Mat x2) -8/Materials (discovered 1 exit: [*Fac]) History --------- Turn | Location | Event 34 | -11/Scrapyard | Discovered new exit (range 15) 1271 | -11/Scrapyard | Assembled infested the area 2119 | -11/Scrapyard | Entered Materials 2120 | -10/Materials | Build established: Mutant 2382 | -10/Materials | Discovered new exit (range 14) 2451 | -10/Materials | Discovered new exit (range 13) 2751 | -10/Materials | Discovered new exit (range 15) 2904 | -10/Materials | Discovered new exit (range 16) 3255 | -10/Materials | Discovered new exit (range 4) 3329 | -10/Materials | Entered another Materials area 3329 | -9/Materials | Evolved 2 slots: Utility x2 4225 | -9/Materials | Discovered new exit (range 9) 4354 | -9/Materials | Discovered new exit (range 12) 4536 | -9/Materials | Discovered new exit (range 5) 4895 | -9/Materials | Discovered new exit (range 13) 4985 | -9/Materials | Discovered new exit (range 9) 4998 | -9/Materials | Entered Mines 5038 | -9/Mines | Assembled infested the area 5098 | -9/Mines | Destroyed 7 combat bots 5228 | -9/Mines | Found a hidden stash of uninstalled traps 5318 | -9/Mines | Assisted by bots powering up and referring to "LRC-V3" 5345 | -9/Mines | Core integrity fell below 50% 5395 | -9/Mines | Discovered new exit (range 11) 5502 | -9/Mines | Discovered new exit (range 8) 5531 | -9/Mines | Entered Materials 5531 | -8/Materials | Accompanied by 3 allies 5531 | -8/Materials | Evolved 2 slots: Utility x2 5828 | -8/Materials | Discovered new exit (range 13) 5908 | -8/Materials | Lost 3 allies 6091 | -8/Materials | Self-destructed Last Messages --------------- 06078_ Imp. Weapon Shielding destroyed. 06079_ L-31 Rogue destroyed. 06079_ G-47 Trooper destroyed. 06079_ I-25 Savior destroyed. 06081_ Imp. Grenade Launcher destroyed. 06086_ K-01 Serf collects debris. 06086_ U-05 Engineer builds a Wall. 06087_ U-05 Engineer lays Concrete. 06087_ G-50 Soldier destroyed. 06087_ U-05 Engineer builds a Door. 06088_ U-05 Engineer lays Concrete. 06088_ U-05 Engineer builds a Wall. 06089_ U-05 Engineer lays Concrete. 06089_ K-01 Serf collects debris. 06090_ U-05 Engineer lays Concrete. 06091_ Overheating: System interference. 06091_ Adv. Beam Cannon temporarily disabled. 06091_ Adv. Targeting Computer temporarily disabled. 06091_ Imp. Sensor Array destroyed. Map ----- +----------------------------------------------------+ | | | | | | | | | | | | | | | | | | | | | | | | | | | ?????????????????????????????????????????? | | ???##########????????????????????????????? | | ???# #???????????????###########??? | | ???# ################# #??? | | ???# + # ! /#??? | | ???# ###### # != #??? | | ???# #???##^ "" ### != #??? | | ???# #???## G" #?# = #??? | | ???# #???## " #?# #??? | | ???# #???## ###! #??? | | ???# #???## * T## = !#??? | | ?#######+#########*[%gg #######+####???? | | ?# =%!u%! @ #????? | | ?# ^!!g%g #????? | | ?## ###############u#%= ### ###+#+###??? | | ??# #????????? g # ##?#+## ! !#? | | ??# #??????# k? ?? # #? | | ??# #??????? k ?# # #? | | ??# #####??? ??# # """ #? | | ### !#??? ???# #""""" #? | | ####? ?????# #""""" #? | | % +? ??????# #""""" #? | | ! ! ####?????????# # """ #? | | ### #????????????# # ????? #? | | ??## ##????????????###########???????##? | | ???# #?????????????????????????????????? | | ???# #?????????????????????????????????? | | ??? #?????????????????????????????????? | | ???# ?????????????????????????????????? | | ???# ????????????????????????????????? | | ???? ???????????????????????????????? | | ????#######??????????????????????????????? | | ?????????????????????????????????????????? | | ?????????????????????????????????????????? | | ?????????????????????????????????????????? | | ######???????????????????????????????????? | | #???????????????????????????????????? | +----------------------------------------------------+ Best States ------------- Heat Dissipation 53 Energy Generation 14 Energy Capacity 250 Matter Stores 300 Matter Capacity 300 Sight Range 16 Robot Scan Range 15 Terrain Scan Density 10 Additional Mass Support 9 Weapon Shielding 66 Evasion (%) 55 Targeting Accuracy 8 Recoil Reduction 2 Item Schematics ----------------- None Robot Schematics ------------------ None Fabricated ------------ Nothing Repaired ---------- Nothing Studied --------- Spread Laser | -9/Materials | Hacked Adv. Treads | -8/Materials | Hacked Ion Cannon | -8/Materials | Hacked Alien Tech Used ----------------- None Achievements -------------- Curiosity Killed The Cat Challenges ------------ None Game ------ Seed PiercingFlightBefriender Manual? 0 Play Time 00:57:10 Cumulative 316.1 hours Start 2026.07.19 @ 12:34:21 End 2026.07.19 @ 13:42:18 Sessions 1 Manual Loads 0 Difficulty Rogue Special Mode None Game No. 178 Rogue 104 Adventurer 74 Explorer 0 Win Type - Total 16 Types 13/0/0/3/0/0/0/0/0/0 Lore% 70 Gallery% 65 Achievement% 47 Wizard Run 0 Options --------- Layout 2 ASCII 0 Keyboard 0 Movement Mouse Keybinds 0 Fullscreen 1 Font 32/SmallcapsGlow Map View 50x44 Zoom Use 0% Tactical HUD 1 Map Filters NONE Filters NONE Steam 1 RUN: 42a32d7a-f05c-4680-a65e-ffc176e28dca